Cogmind - Beta 16.1 @@@ ROGUE MODE // 2026.03.13 @ 13:04:50 Player: Ragnakor Result: Core destroyed Performance ------------- Evolutions (2) 1000 Regions Visited (3) 600 Robots Destroyed (26) 130 Value Destroyed (726) 726 Prototype IDs (0) 0 Alien Tech Used (0) 0 Bonus (0) 0 TOTAL SCORE: 2456 Bonus ------- None Cogmind --------- Core Integrity 0/550 Matter 300/300 Energy 123/160 System Corruption 0% Temperature Cool (-100) Movement Hovering (48) Location -8/Materials Parts ------- > --- POWER (1) -------- Light Nuclear Core > --- PROPULSION (4) --- Improved Hover Unit Improved Hover Unit Improved Hover Unit Improved Hover Unit > --- UTILITY (4) ------ Cryofiber Web Large Storage Unit Improved Terrain Scan Processor Advanced Targeting Computer > --- WEAPON (2) ------- (None) > --- INVENTORY (15) --- Ion Engine Ion Engine Ion Engine Deuterium Engine Improved Hover Unit Small Storage Unit Small Storage Unit Improved Sensor Array Signal Interpreter Active Sensor Suite Dynamic Insulation System Field Laser Peak State ------------ > --- POWER ------------ Reinforced Deuterium Engine > --- PROPULSION ------- Armored Treads Armored Treads Improved Aluminum Leg Compact Wheel > --- UTILITY ---------- Cryofiber Web Large Storage Unit Improved Terrain Scan Processor Advanced Targeting Computer > --- WEAPON ----------- Particle Gun > --- INVENTORY -------- Ion Engine Ion Engine Ion Engine Deuterium Engine Small Storage Unit Small Storage Unit Improved Sensor Array Signal Interpreter Active Sensor Suite Dynamic Insulation System [Rating: 29] Favorites ----------- Power Ion Engine Engine Ion Engine Power Core Light Nuclear Core Propulsion Aluminum Leg Treads Armored Treads Leg Aluminum Leg Wheel Compact Wheel Hover Unit Improved Hover Unit Utility Improved Terrain Scanner Device Improved Terrain Scanner Storage Small Storage Unit Processor Improved Terrain Scan Processor Weapon Assault Rifle Energy Gun Particle Gun Energy Cannon Ion Cannon Ballistic Gun Assault Rifle Build | -11 -10 -9 -8 ------- Run | Yrd Mat Mat Mat Slots Evolved 4 | . . 2 2 Power . | . . . . Propulsion 2 | . . 2 . Utility 2 | . . . 2 Weapon . | . . . . Parts Attached 37 | 9 6 3 19 Power 7 | 2 2 . 3 Engine 6 | 2 2 . 2 Core 1 | . . . 1 Reactor . | . . . . Propulsion 15 | 2 4 1 8 Treads 2 | . . . 2 Leg 7 | 2 4 1 . Wheel 1 | . . . 1 Hover 5 | . . . 5 Flight . | . . . . Utility 9 | 2 . 1 6 Device 2 | 1 . . 1 Storage 2 | 1 . . 1 Processor 5 | . . 1 4 Hackware . | . . . . Protection . | . . . . Artifact . | . . . . Weapon 6 | 3 . 1 2 Energy Gun 2 | . . . 2 Energy Cannon 1 | . . 1 . Ballistic Gun 3 | 3 . . . Ballistic Cannon . | . . . . Launcher . | . . . . Special Weapon . | . . . . Impact Weapon . | . . . . Slashing Weapon . | . . . . Piercing Weapon . | . . . . Special Melee Weapon . | . . . . Unidentified Prototypes . | . . . . Parts Lost 16 | . 1 2 13 Power 2 | . 1 . 1 Propulsion 8 | . . . 8 Utility 1 | . . . 1 Weapon 5 | . . 2 3 Highest Loss Streak 6 | . 1 1 6 To Critical Strikes 2 | . . . 2 Average Backups 7 | 3 6 7 9 Power 1 | . . 1 3 Propulsion 2 | . 3 2 . Utility 2 | . 1 2 4 Weapon . | . 1 . . Tool/Special . | . . . . Unused Backups 8 | . 1 1 6 Power 2 | . 1 . 1 Propulsion 1 | . . 1 . Utility 5 | . . . 5 Weapon . | . . . . Tool/Special . | . . . . Average Slot Usage (%) 94 | . 100 96 85 Engine 11 | . 14 11 8 Treads 2 | . . . 7 Leg 29 | . 28 43 15 Wheel 1 | . . . 5 Device 10 | . 14 9 8 Storage 11 | . 14 11 9 Processor 5 | . . . 17 Energy Cannon 1 | . . . 2 Ballistic Gun 18 | . 28 19 5 Peak Build Rating 29 | 9 9 14 29 Average Rating 13 | 6 8 11 23 On Entrance 8 | . 9 9 14 Avg Prop Armor Cover (%) 14 | . . . 14 Naked Turns . | . . . . Heaviest Build 39 | 15 15 18 39 Greatest Support 43 | 20 20 43 43 Greatest Overweight (x) 11 | 2 . . 11 Average Overweight (x) . | . . . . Largest Inventory Capacity 15 | 8 8 8 15 Average Capacity 9 | 6 8 8 14 Most Carried 14 | 5 8 8 14 Average Carried 7 | 3 6 7 10 Final Capacity 15 | 8 8 8 15 Final Carried 14 | 5 8 7 14 Class Distribution -------------------- 57% | Scavenger-Mutant 42% | Mutant Dominant Class ---------------- Scavenger-Mutant | -10/Materials Scavenger-Mutant | -9/Materials Mutant | -8/Materials Resources | -11 -10 -9 -8 ----------- Run | Yrd Mat Mat Mat Matter Collected 922 | 266 341 55 260 Remotely . | . . . . Salvage Created 927 | 132 368 55 372 Parts 64 | 12 24 7 21 Haulers Intercepted . | . . . . Recyclers Shooed 2 | . 1 . 1 Parts Field Recycled . | . . . . Retrieved Matter . | . . . . Parts Self-Destructed . | . . . . Prevented . | . . . . Parts Restored . | . . . . Kills | -11 -10 -9 -8 ------- Run | Yrd Mat Mat Mat Combat Hostiles Destroyed 18 | . 10 1 7 Guns 16 | . 10 1 5 Cannons 1 | . . . 1 Classes Destroyed 9 | 3 2 1 3 Worker 2 | 1 1 . . Builder 1 | . . . 1 Tunneler 3 | 3 . . . Recycler 1 | 1 . . . Watcher 1 | . . . 1 Swarmer 3 | . 3 . . Grunt 12 | . 7 . 5 Sentry 2 | . . 1 1 Heavy 1 | . . . 1 Best Kill Streak 7 | 2 7 1 3 Combat Bots Only 6 | . 6 1 2 Max Kills in Single Turn 1 | 1 1 1 1 Gunslinging . | . . . . Exploded . | . . . . Melee . | . . . . Uniques/NPCs Destroyed . | . . . . Combat | -11 -10 -9 -8 -------- Run | Yrd Mat Mat Mat Hostile Shots Fired 236 | . 63 33 140 Missed 84 | . 23 15 46 Hits 152 | . 40 18 94 Melee 1 | . . . 1 Projectile 151 | . 40 18 93 Critical Strikes 5 | . . 1 4 Damage Taken 2451 | . 427 258 1766 Core 637 | . 48 29 560 Absorbed by Shields . | . . . . Regen/Repaired (Parts) 20 | . . 20 . Core Remaining (%) 90 | 100 80 92 . Volleys Fired 115 | 11 31 7 66 Largest 2 | 2 2 2 2 Hottest 80 | 40 40 80 80 Shots Fired 172 | 22 62 14 74 Gun 162 | 22 62 12 66 Cannon 10 | . . 2 8 Launcher . | . . . . Special . | . . . . Kinetic 133 | 22 62 12 37 Thermal 39 | . . 2 37 Explosive . | . . . . Electromagnetic . | . . . . Robot Hit Streak 14 | 4 13 5 14 Robot Miss Streak 4 | 4 4 2 1 Penetration Max . | . . . . Secondary Targets 3 | . 3 . . Max Gunslinging Chain 1 | . 1 . . Shots Hit Robots 123 | 11 41 8 63 Core Hits 48 | 6 16 4 22 Critical Kills . | . . . . Critical Parts Destroyed 1 | 1 . . . Critical Strikes 2 | 1 . . 1 Burn 1 | . . . 1 Destroy 1 | 1 . . . Melee Attacks . | . . . . Impact . | . . . . Slashing . | . . . . Piercing . | . . . . Sneak Attacks . | . . . . Combat Hostiles . | . . . . Follow-up Attacks . | . . . . Damage Inflicted 1709 | 143 535 116 915 Guns 1411 | 143 533 87 648 Cannons 205 | . . 23 182 Explosions . | . . . . Melee . | . . . . Ramming 93 | . 2 6 85 Kinetic 1012 | 143 533 87 249 Thermal 604 | . . 23 581 Explosive . | . . . . Electromagnetic . | . . . . Impact . | . . . . Slashing . | . . . . Piercing . | . . . . Highest Corruption . | . . . . Average Corruption . | . . . . Corruption Purged . | . . . . Corruption Blocked . | . . . . Overload Shots . | . . . . Overflow Damage . | . . . . Projectiles . | . . . . Explosions . | . . . . Melee . | . . . . Knockbacks 2 | . . . 2 Impact 2 | . . . 2 Kinetic . | . . . . Secondary . | . . . . Self-Inflicted Damage 29 | . . . 29 Shots . | . . . . Rammed 17 | . . . 17 Targets Rammed 21 | . 2 2 17 Kicked 4 | . 2 2 . Crushed . | . . . . Highest Temperature 612 | . 2 34 612 Average Temperature 208 | . 2 16 231 Received Heat Transfer 741 | . 189 111 441 Effects 11 | . . . 11 Shutdowns 1 | . . . 1 Energy Bleed 2 | . . . 2 Interference 4 | . . . 4 Matter Decay 1 | . . . 1 Short Circuit 1 | . . . 1 Damage (major) 2 | . . . 2 Siege Activations . | . . . . Martial Activations . | . . . . Shielding Activations . | . . . . Robots Disrupted . | . . . . Combat Hostiles . | . . . . Robots Corrupted . | . . . . Combat Hostiles . | . . . . Parts Fried . | . . . . Impact Corruptions . | . . . . Robots Melted 1 | . . . 1 Combat Hostiles 1 | . . . 1 Parts Melted 1 | . . . 1 Heat Transferred 1332 | . . 37 1295 Parts Sabotaged . | . . . . Parts Stolen . | . . . . Parts Stripped . | . . . . Power Chain Reactions . | . . . . Alert | -11 -10 -9 -8 ------- Run | Yrd Mat Mat Mat Maximum Alert Level . | . . . . Low Security (%) 100 | 100 100 100 100 Level 1 . | . . . . Level 2 . | . . . . Level 3 . | . . . . Level 4 . | . . . . Level 5 . | . . . . High Security . | . . . . Max Security . | . . . . Peak Influence 138 | 10 138 59 50 Initial 37 | . 3 37 21 Average 20 | 1 42 10 12 Influence Increases 612 | 25 276 129 182 Destroy 0b10 Robot/C 360 | . 200 20 140 Destroy 0b10 Robot/NC 40 | 25 5 . 10 Destroy Leader 82 | . 40 10 32 Successful Hack 9 | . . 9 . Destroy Structure 1 | . 1 . . Lose Combat Pursuer 120 | . 30 90 . Influence Decreases 612 | 20 191 168 233 Entered New Map 85 | . 2 53 30 Time Decay 420 | 20 179 83 138 Lost Part 80 | . 10 5 65 Purge Threat 27 | . . 27 . Squads Dispatched 5 | . 2 2 1 Investigation 2 | . 1 1 . Extermination . | . . . . Reinforcement 3 | . 1 1 1 Assault . | . . . . Garrison . | . . . . Intercept . | . . . . Searches Triggered . | . . . . Construction Impeded . | . . . . Haulers Reinforced . | . . . . Active Scanning Responses . | . . . . Cargo Convoy Interrupts . | . . . . Stealth | -11 -10 -9 -8 --------- Run | Yrd Mat Mat Mat Distress Signals 5 | . 3 1 1 Communications Jammed . | . . . . Distress Signals . | . . . . Times Spotted 48 | . 21 12 15 Peak Tracking Total 9 | . 8 9 5 Tactical Retreats 4 | . 1 3 . Traps | -11 -10 -9 -8 ------- Run | Yrd Mat Mat Mat Traps Triggered 3 | . 1 1 1 Indirectly . | . . . . Trap Hack Attempts . | . . . . Triggered . | . . . . Disarmed . | . . . . Reprogrammed . | . . . . Reused . | . . . . Traps Extracted . | . . . . Installed . | . . . . Triggered . | . . . . Machines | -11 -10 -9 -8 ---------- Run | Yrd Mat Mat Mat Machines Disabled . | . . . . Max in Single Turn . | . . . . Machines Repaired . | . . . . Machines Dismantled . | . . . . Machines Sabotaged . | . . . . Overloaded Fab Kills . | . . . . Hacking | -11 -10 -9 -8 --------- Run | Yrd Mat Mat Mat Machines Accessed 9 | . 3 6 . Terminals 6 | . 2 4 . Fabricators . | . . . . Repair Stations 1 | . . 1 . Recycling Units 1 | . 1 . . Scanalyzers 1 | . . 1 . Garrison Access . | . . . . Total Hacks 21 | . 7 14 . Successful 9 | . 2 7 . Failed 12 | . 5 7 . Catastrophic 3 | . . 3 . Database Lockouts . | . . . . Manual . | . . . . Terminals 13 | . 5 8 . Fabricators . | . . . . Repair Stations 4 | . . 4 . Recycling Units 2 | . 2 . . Scanalyzers 2 | . . 2 . Garrison Access . | . . . . Terminal Hacks 4 | . 1 3 . Unreport Threat 2 | . . 2 . Locate Traps 1 | . 1 . . Registered Components 1 | . . 1 . Fabricator Hacks . | . . . . Repair Station Hacks 3 | . . 3 . Scan Component 2 | . . 2 . Repair 1 | . . 1 . Recycling Unit Hacks 1 | . 1 . . Retrieve Components 1 | . 1 . . Scanalyzer 1 | . . 1 . Retrieve Study 1 | . . 1 . Garrison Access Hacks . | . . . . Unauthorized Hacks . | . . . . Terminals . | . . . . Fabricators . | . . . . Repair Stations . | . . . . Recycling Units . | . . . . Scanalyzers . | . . . . Garrison Access . | . . . . Data Cores Recovered . | . . . . Used . | . . . . Hacking Detections 9 | . 3 6 . Full Trace Events 1 | . . 1 . Feedback Events . | . . . . Feedback Blocked . | . . . . Robot Schematics Acquired . | . . . . Robots Built . | . . . . Authchips . | . . . . Time . | . . . . Total Robot Build Rating . | . . . . Part Schematics Acquired . | . . . . Parts Built . | . . . . Authchips . | . . . . Time . | . . . . Total Part Build Rating . | . . . . Part Studies Acquired 1 | . . 1 . Parts Repaired 1 | . . 1 . Time 38 | . . 38 . Parts Recycled . | . . . . Recycled Matter . | . . . . Retrieved Matter . | . . . . Retrieved Components 2 | . 2 . . Parts Scanalyzed . | . . . . Part Schematics Acquired . | . . . . Parts Damaged . | . . . . Bothacking | -11 -10 -9 -8 ------------ Run | Yrd Mat Mat Mat Used RIF Installer . | . . . . Robots Hacked . | . . . . Non-combat . | . . . . Combat . | . . . . Robot Hacks Applied . | . . . . Relay Couplers Released . | . . . . Fabnet Peak Effective % . | . . . . Robots Rewired . | . . . . Allies Hacked . | . . . . Hacks Repelled . | . . . . Allies | -11 -10 -9 -8 -------- Run | Yrd Mat Mat Mat Total Allies . | . . . . Largest Group . | . . . . Highest-Rated Group . | . . . . Highest-Rated Ally . | . . . . Total Orders . | . . . . Ally Attacks . | . . . . Total Damage . | . . . . Kills . | . . . . Allies Corrupted . | . . . . Allies Melted . | . . . . Intel | -11 -10 -9 -8 ------- Run | Yrd Mat Mat Mat Active Infowar (turns) 1162 | 78 530 436 118 Terrain 1162 | 78 530 436 118 Robot Analysis Total . | . . . . Derelict Logs Recovered . | . . . . Drone Launches . | . . . . Drone Recoveries . | . . . . Exploration | -11 -10 -9 -8 ------------- Run | Yrd Mat Mat Mat Turns Passed 1635 | 173 530 476 456 Spaces Moved 957 | 110 331 350 166 Core 22 | 18 . . 4 Treads 35 | . . . 35 Legs 866 | 92 331 350 93 Wheels 18 | . . . 18 Hover 16 | . . . 16 Flight . | . . . . Fastest Speed 48 | 50 120 108 48 Average Speed 122 | 113 120 115 144 Slowest Speed 600 | 150 120 120 600 Overloaded Moves . | . . . . Propulsion Burnouts . | . . . . Robots Hopped . | . . . . Potential Cave-ins . | . . . . Cave-ins Triggered . | . . . . Exploration Rate (%) 27 | 5 58 31 14 Regions Visited 3 Branch Regions . Pre-discovered Areas . | . . . . Known Exits Taken . | . . . . Unknown Exits Taken 3 | 1 1 1 . Scrap Searched . | . . . . Spaces Dug . | . . . . Terrain Destroyed . | . . . . Melee . | . . . . Projectile . | . . . . AOE . | . . . . Terrain Rammed . | . . . . Walls Destroyed . | . . . . Machines Disabled . | . . . . Actions | -11 -10 -9 -8 --------- Run | Yrd Mat Mat Mat Total 1231 | 132 402 405 292 Wait 78 | . 26 35 17 Move 954 | 109 330 349 166 Hop . | . . . . Pick Up 12 | 3 2 2 5 Fast Attach 20 | 7 . 3 10 Attach 9 | . 1 3 5 Detach 2 | . . 1 1 Swap 16 | 2 6 2 6 Drop 5 | . 4 1 . Fire 115 | 11 31 7 66 Melee . | . . . . Ram 7 | . . . 7 Kick 4 | . 2 2 . Crush 9 | . . . 9 Escape Stasis . | . . . . Rewire . | . . . . Trap . | . . . . Miscellaneous . | . . . . Route ------- -11/Scrapyard -10/Materials (discovered 2 exits: *Mat / [*Min]) -9/Materials (discovered 2 exits: [*Mat] / [*Min]) -8/Materials History --------- Turn | Location | Event 8 | -11/Scrapyard | Discovered new exit (range 15) 174 | -11/Scrapyard | Entered Materials 308 | -10/Materials | Build established: Mutant 534 | -10/Materials | Discovered new exit (range 10) 679 | -10/Materials | Discovered new exit (range 12) 702 | -10/Materials | Build established: Scavenger-Mutant 704 | -10/Materials | Entered another Materials area 704 | -9/Materials | Evolved 2 slots: Propulsion x2 784 | -9/Materials | Discovered new exit (range 6) 937 | -9/Materials | Discovered new exit (range 5) 993 | -9/Materials | Repaired Imp. Terrain Scanner 1180 | -9/Materials | Entered another Materials area 1180 | -8/Materials | Evolved 2 slots: Utility x2 1354 | -8/Materials | Found Prototype Device 1371 | -8/Materials | Lost 6 parts (4n1u1w) 1519 | -8/Materials | Core integrity fell below 50% 1581 | -8/Materials | Core integrity fell below 20% 1627 | -8/Materials | Lost 5 parts (4n1w) 1636 | -8/Materials | Core destroyed Last Messages --------------- 01620_ Triggered Blade Trap. 01620_ Massive razor-sharp blades shoot up from within the floor. 01620_ Rnf. Deuterium Engine severed. 01621_ Penetrated by Slug. 01621_ Acquired Rnf. Deuterium Engine. 01623_ C-30 ARC bursts open, deploying its payload. 01623_ L-31 Rogue unfolds itself. 01623_ G-47 Trooper unfolds itself. 01625_ Slug penetrates Wall. 01627_ Rnf. Deuterium Engine destroyed. 01629_ K-01 Serf collects debris. 01630_ Slammed into G-47 Trooper. 01632_ Slammed into K-01 Serf. 01632_ K-01 Serf knocked back. 01633_ Acquired 63 matter. 01634_ Slammed into K-01 Serf. 01635_ Slammed into R-06 Scavenger. 01636_ Destabilizing: Core damaged (-22). Map ----- +----------------------------------------------------+ | ?????????????????????????????????????????????????? | | ?????????????????????????????????????????????????? | | ?????????????????????????????????????????????????? | | ?????????????????????????????????????????????????? | | ?????????????????????????????????????????????????? | | ?????????????????????????????????????????????????? | | ?????????????????????????????????????????????????? | | ?????????????????????????????????????????????????? | | ?????????????????????????????????????????????????? | | ?????????????????????????????????????????????????? | | ???????????????????????? ??????????????????????? | | ???????????????????????? ??????????????????????? | | ???????????????????????? ??????????????????????? | | ???????????????????????? ??????????????????????? | | ???????????????????????? ??????????????????????? | | ???????????????????????? ??????????????????????? | | ???????????????????????? ??????????????????????? | | ???????????????????????? ??????????????????????? | | ????????????????????????# #??????????????????????? | | ????????????????????????# #??????????????????????? | | ????????????????????????# #??????????????????????? | | ????????????????????????# #??????????????????????? | | ???????????????????????? k#??????????????????????? | | ????????????????????????#r#??????????????????????? | | ????????????????????????#r#??????????????????????? | | ????????????????????????#@#??????????????????????? | | ????????#???????????????#r#??????????????????????? | | ???????????#??##????????# #??????????????????????? | | ??????##??????#?##??????# #??????????????????????? | | ????#??????#??????#?????#%#??????????????????????? | | ????#????#??????#???#####l######?????????????????? | | ?#??????#???#??###???# gg #?????????????????? | | ?####??###??????????## T #?????????????????? | | ##?????########?????# """ #?????????????????? | | ????#### #?????## """ #?????????????????? | | #?????##% #?#????# """ =^ #?????????????????? | | #???#?##% #???#??# #?????????????????? | | ???????#! #??????# #?????????????????? | | ??#??###! %#??????# [ =#?????????????????? | | ?#??#??# % %%%#?#??#?###""######?????????????????? | | ############+########## % #######??????????????? | | %%% % ! ??????????? | | % % [ ?????????? | | % % ??????????? | | ##################### ! ###+#######??????????? | | #????#?#???###?#????#######????????????????????? | | ##???#?#?##?#?#?#??????#???????????????????????? | | ####??#?##?#??#?#??#???????????????????????????? | | !##??##?#???#????????????????????????????????? | | !###?##???####??????????????????????????????? | +----------------------------------------------------+ Best States ------------- Heat Dissipation 31 Energy Generation 16 Energy Capacity 290 Matter Stores 300 Matter Capacity 300 Sight Range 16 Terrain Scan Range 16 Terrain Scan Density 110 Base Temperature (-) 100 Evasion (%) 55 Targeting Accuracy 8 Recoil Reduction 2 Item Schematics ----------------- None Robot Schematics ------------------ None Fabricated ------------ Nothing Repaired ---------- Imp. Terrain Scanner | 9% | -9/Materials Studied --------- Aluminum Leg | -9/Materials | Hacked Alien Tech Used ----------------- None Achievements -------------- None Challenges ------------ None Game ------ Seed SpacefoldClaymoresGreatsword Manual? 0 Play Time 00:16:32 Cumulative 21.6 hours Start 2026.03.13 @ 12:48:55 End 2026.03.13 @ 13:04:50 Sessions 1 Manual Loads 0 Difficulty Rogue Special Mode None Game No. 43 Rogue 43 Adventurer 0 Explorer 0 Win Type - Total 0 Types 0/0/0/0/0/0/0/0/0/0 Lore% 22 Gallery% 19 Achievement% 16 Wizard Run 0 Options --------- Layout 1 ASCII 0 Keyboard 0 Movement Numpad Keybinds 0 Fullscreen 1 Font 24/Smallcaps Map View 50x35 Zoom Use 0% Tactical HUD 1 Map Filters NONE Filters NONE Steam 1 RUN: e9269a95-3aee-4077-a62f-da0121342908